bitfinex/quotes_SOLUSD_20250719
["timestamp","ask_amount","ask_price","bid_price","bid_amount"]
[1752928221137,0.03,176.21,176.2,0.66]
[1752928221334,0.03,176.21,176.2,5.76150391]
[1752928221534,0.03,176.27,176.23,26.0]
[1752928221754,0.03,176.27,176.24,40.74]
[1752928221955,0.03,176.27,176.24,41.4]
[1752928222128,0.03,176.27,176.25,0.66]
[1752928222333,0.03,176.27,176.26,40.74]
[1752928222561,0.03,176.27,176.26,41.4]
[1752928223264,0.03,176.27,176.26,40.74]
[1752928223446,5.13150391,176.27,176.26,40.74]
[1752928224065,0.03,176.27,176.26,40.74]
[1752928224662,5.13150391,176.27,176.26,40.74]
[1752928226037,5.13150391,176.27,176.26,41.44]
[1752928226946,0.03,176.27,176.26,41.44]
[1752928229243,0.03,176.27,176.26,155.84150391]
[1752928230174,0.03,176.27,176.26,172.62618788]
[1752928231961,0.03,176.27,176.26,178.29962484]
[1752928232364,0.03,176.27,176.26,212.32962484]
[1752928232560,0.03,176.27,176.26,186.32962484]
[1752928233064,0.06,176.29,176.28,34.03]
[1752928233270,0.06,176.29,176.28,163.63878323]
[1752928233474,0.06,176.29,176.28,163.77150391]
[1752928235365,0.06,176.29,176.28,169.44429719]
[1752928236072,0.06,176.29,176.28,102.92898116]
[1752928236270,0.06,176.29,176.28,103.49626048]
[1752928236767,0.06,176.31,176.3,50.81468397]
[1752928236949,0.06,176.31,176.3,97.08340285]
[1752928237156,0.06,176.31,176.3,97.78340285]
[1752928238560,0.06,176.31,176.3,103.45555259]
[1752928238976,0.06,176.31,176.3,98.35404868]
[1752928239162,0.06,176.31,176.3,97.78340285]
[1752928239778,0.06,176.31,176.3,103.45555259]
[1752928240575,0.06,176.31,176.3,120.44555259]
[1752928240757,0.06,176.31,176.3,119.87833762]
[1752928241480,0.06,176.31,176.3,351.87833762]
[1752928243076,0.06,176.31,176.3,349.89960367]
[1752928246361,0.06,176.31,176.3,353.02237363]
[1752928246566,0.06,176.31,176.3,359.33707363]
[1752928248571,0.06,176.31,176.3,356.21430367]
[1752928248881,0.06,176.31,176.3,286.63745393]
[1752928249080,0.06,176.31,176.3,282.81468397]
[1752928249290,0.06,176.31,176.3,91.29468397]
[1752928249584,3.79276996,176.31,176.29,60.0]
[1752928249768,0.06,176.31,176.3,40.48]
[1752928250081,3.18276996,176.31,176.3,40.5]
[1752928250384,3.79276996,176.31,176.3,40.5]
[1752928250980,5.76450352,176.31,176.3,40.5]
[1752928251368,5.76450352,176.31,176.29,0.03]
[1752928251558,0.06,176.31,176.3,40.5]
[1752928251755,5.15450352,176.31,176.3,40.5]
[1752928252181,5.76450352,176.31,176.3,40.5]
[1752928252369,11.43633155,176.31,176.3,40.5]
[1752928252768,5.76450352,176.31,176.3,40.5]
[1752928253368,11.43633155,176.31,176.3,40.5]
[1752928253567,11.43633155,176.31,176.29,0.03]
[1752928253763,5.70450352,176.3,176.29,0.03]
[1752928253964,5.70450352,176.3,176.29,40.51]
[1752928259196,0.06,176.31,176.29,40.51]
[1752928259397,0.06,176.31,176.29,41.2]
[1752928260076,0.06,176.31,176.29,40.51]
[1752928260295,0.06,176.31,176.29,41.2]
[1752928260982,5.15450352,176.31,176.29,40.51]
[1752928262186,5.09450352,176.3,176.29,0.03]
[1752928262389,5.09450352,176.3,176.29,40.45]
[1752928262583,5.76450352,176.31,176.29,40.45]
[1752928263900,5.09450352,176.3,176.29,40.45]
[1752928264600,5.70450352,176.3,176.29,40.45]
[1752928265699,11.37665326,176.3,176.29,40.45]
[1752928268000,11.37665326,176.3,176.29,0.03]
[1752928271014,9.40910377,176.3,176.29,0.03]
[1752928282723,8.79910377,176.3,176.29,0.03]
[1752928282926,0.67,176.31,176.29,0.03]
[1752928282927,0.06,176.31,176.29,0.03]
[1752928283137,3.12695403,176.3,176.29,0.75]
[1752928283305,3.12695403,176.3,176.29,40.97]
[1752928285046,5.73183241,176.31,176.29,40.97]
[1752928285537,8.85878644,176.31,176.29,40.97]
[1752928286643,3.18695403,176.31,176.29,40.97]
[1752928286845,0.06,176.31,176.29,40.25]
[1752928287137,0.06,176.31,176.3,0.72]
[1752928287718,3.18695403,176.31,176.29,40.25]
[1752928288020,3.18695403,176.31,176.29,40.97]
[1752928290226,3.18695403,176.31,176.3,0.72]
[1752928290434,0.06,176.31,176.3,0.72]
[1752928291321,0.06,176.31,176.29,40.25]
[1752928291638,3.18695403,176.31,176.29,40.97]
[1752928293042,3.18695403,176.31,176.3,0.72]
[1752928295926,3.18695403,176.31,176.29,40.25]
[1752928295927,3.18695403,176.31,176.29,40.97]
[1752928298658,3.18695403,176.31,176.3,0.72]
[1752928298863,3.79695403,176.31,176.29,0.03]
[1752928299031,3.73695403,176.3,176.29,0.03]
[1752928299931,9.40910377,176.3,176.29,0.03]
[1752928300253,25.11107813,176.3,176.25,0.03]
[1752928300441,3.12695403,176.26,176.25,0.03]
[1752928300825,3.73695403,176.26,176.25,0.03]
[1752928301937,9.41039099,176.26,176.25,0.03]
[1752928302943,9.41039099,176.26,176.21,0.03]
[1752928302944,23.59398341,176.26,176.21,0.03]
[1752928303257,6.25390806,176.22,176.21,0.03]
[1752928303766,6.86390806,176.22,176.21,0.03]
[1752928304062,12.53863283,176.22,176.21,0.03]
[1752928305029,29.3233168,176.22,176.21,1e-08]
[1752928305236,26.72544476,176.22,176.14,40.1]
[1752928305462,3.12695403,176.15,176.14,40.1]
[1752928305661,3.12695403,176.15,176.14,40.82]
[1752928306641,5.67612315,176.18,176.14,40.82]
[1752928306841,3.12695403,176.15,176.14,40.1]
[1752928307535,3.12695403,176.15,176.14,40.82]
[1752928309563,3.12695403,176.16,176.14,40.82]
[1752928309764,3.12695403,176.15,176.14,40.82]
[1752928311452,8.80393387,176.15,176.14,40.1]
[1752928312160,9.41393387,176.15,176.11,0.2]
[1752928312367,3.12695403,176.12,176.11,70.32]
[1752928312965,3.12695403,176.12,176.11,40.32]
[1752928313467,8.80490088,176.12,176.11,40.32]
[1752928313870,9.41490088,176.12,176.11,0.2]
[1752928316674,9.41490088,176.12,176.1,0.06]
[1752928316854,3.12695403,176.08,176.07,0.06]
[1752928317364,29.73695403,176.08,176.07,0.06]
[1752928317555,35.41619074,176.08,176.07,0.06]
[1752928317762,35.41619074,176.08,176.06,0.06]
[1752928317960,3.73695403,176.07,176.06,0.06]
[1752928318355,3.12695403,176.07,176.06,0.06]
[1752928318653,3.73695403,176.07,176.06,0.06]
[1752928319777,9.41651329,176.07,176.06,0.06]
[1752928320364,9.41651329,176.07,176.06,1e-08]
[1752928320560,29.32815129,176.07,176.06,1e-08]
[1752928320772,43.52704945,176.07,176.02,0.03]
[1752928320970,3.12695403,176.03,176.02,0.03]
[1752928321377,3.73695403,176.03,176.02,0.03]
[1752928321762,9.41780388,176.03,176.02,0.03]
[1752928321963,5.68084985,176.03,176.02,0.03]
[1752928322186,8.80780388,176.03,176.02,0.03]
[1752928322392,9.41780388,176.03,176.02,0.03]
[1752928322568,8.80780388,176.03,176.02,0.03]
[1752928322887,9.41780388,176.03,176.02,0.03]
[1752928323261,9.30780388,176.03,176.02,0.03]
[1752928323883,0.5,176.03,176.02,0.03]
[1752928324075,3.12695403,176.03,176.02,0.74]
[1752928324271,8.80780388,176.03,176.02,0.03]
[1752928325096,9.41780388,176.03,176.02,0.03]
[1752928325288,8.80780388,176.03,176.02,0.03]
[1752928325484,0.61,176.06,176.02,0.03]
[1752928325671,3.12695403,176.03,176.02,0.74]
[1752928326586,0.61,176.1,176.02,44.02695403]
[1752928326775,3.12695403,176.07,176.03,0.71]
[1752928327176,3.12695403,176.08,176.03,0.71]
[1752928327987,3.12695403,176.08,176.03,3.83695403]
[1752928328188,3.12695403,176.08,176.04,0.71]
[1752928328390,3.12695403,176.06,176.04,0.71]
[1752928329579,3.12695403,176.06,176.02,125.0416]
[1752928329887,3.12695403,176.06,176.05,0.71]
[1752928330788,14.19508083,176.12,176.05,0.71]
[1752928330789,3.12695403,176.07,176.05,0.71]
[1752928331172,5.6789188,176.09,176.06,40.14]
[1752928331371,3.12695403,176.07,176.06,40.14]
[1752928331572,3.73695403,176.07,176.06,40.14]
[1752928332100,5.67988185,176.06,176.02,40.17]
[1752928332277,3.12695403,176.03,176.02,40.17]
[1752928334200,8.80780388,176.03,176.02,40.17]
[1752928334373,9.41780388,176.03,176.02,0.03]
[1752928334579,8.80780388,176.03,176.02,0.03]
[1752928335969,9.41780388,176.03,176.02,0.03]
[1752928336390,8.80780388,176.03,176.02,0.03]
[1752928336582,9.41780388,176.03,176.02,0.03]
[1752928338501,9.91780388,176.03,176.02,0.03]
[1752928339994,9.30780388,176.03,176.02,0.03]
[1752928340196,8.80780388,176.03,176.02,0.03]
[1752928341517,3.12695403,176.03,176.02,0.74]
[1752928341815,3.12695403,176.03,176.02,0.03]
[1752928341981,3.73695403,176.03,176.02,0.03]
[1752928343426,9.41780388,176.03,176.02,0.03]
[1752928343718,40.40461248,176.03,175.98,30.03]
[1752928344006,3.12695403,175.99,175.98,0.03]
[1752928344782,3.73695403,175.99,175.98,0.03]
[1752928345711,8.80909506,175.99,175.98,0.03]
[1752928346495,9.41909506,175.99,175.98,0.03]
[1752928347106,12.54604909,175.99,175.94,0.03]
[1752928347303,6.25390806,175.95,175.94,0.03]
[1752928347506,11.93734085,175.95,175.94,0.03]
[1752928348202,12.54734085,175.95,175.94,0.03]
[1752928348400,29.33202482,175.95,175.94,0.03]
[1752928348605,29.83202482,175.95,175.94,0.03]
[1752928351927,44.0406068,175.95,175.87,0.66]
[1752928352097,3.12695403,175.88,175.87,0.66]
[1752928352305,3.12695403,175.88,175.85,0.66]
[1752928352502,26.0,175.92,175.84,0.1]
[1752928352503,3.12695403,175.86,175.84,0.1]
[1752928353097,3.12695403,175.85,175.84,0.1]
[1752928353825,8.8136188,175.85,175.84,0.1]
[1752928354219,3.12695403,175.85,175.84,0.1]
[1752928354422,3.12695403,175.85,175.84,0.76]
[1752928354811,5.68569479,175.88,175.84,0.76]
[1752928355011,3.12695403,175.86,175.84,0.76]
[1752928355310,3.12695403,175.86,175.85,0.66]
[1752928356736,3.12695403,175.86,175.84,0.1]
[1752928356940,6.18606059,175.87,175.85,0.66]
[1752928357119,3.12695403,175.86,175.85,0.66]
[1752928358044,0.5,175.87,175.85,0.66]
[1752928358338,3.12695403,175.86,175.85,0.66]
[1752928358535,3.12695403,175.86,175.84,0.1]
[1752928359045,3.12695403,175.86,175.85,0.66]
[1752928359335,3.12695403,175.86,175.85,0.72]
[1752928361642,6.29524773,175.9,175.85,0.72]
[1752928361818,5.68524773,175.9,175.85,0.72]
[1752928362018,3.12695403,175.88,175.85,0.72]
[1752928362215,26.0,175.94,175.86,3.12695403]
[1752928362542,3.12695403,175.93,175.88,3.12695403]
[1752928362712,3.12695403,175.93,175.89,0.66]
[1752928362919,3.12695403,175.94,175.89,3.78695403]
[1752928363130,3.12695403,175.94,175.9,0.66]
[1752928364855,0.03,175.95,175.91,3.12695403]
[1752928365025,0.03,175.95,175.92,41.1]
[1752928365527,0.03,175.95,175.93,0.66]
[1752928366044,0.03,175.95,175.93,3.78695403]
[1752928366431,0.03,175.95,175.94,0.66]
[1752928366740,0.03,175.95,175.94,5.31105403]
[1752928366947,0.03,175.95,175.94,11.41935403]
[1752928367146,0.03,175.95,175.94,8.2924]
[1752928367347,0.03,175.95,175.94,11.41935403]
[1752928367565,0.03,175.95,175.94,8.2924]
[1752928368157,0.03,175.95,175.94,11.41935403]
[1752928368714,0.03,175.95,175.94,8.2924]
[1752928369753,0.03,175.95,175.94,0.66]
[1752928369956,0.03,175.95,175.94,41.14]
[1752928370840,0.03,175.95,175.94,41.12]
[1752928371257,3.15695403,175.95,175.94,40.46]
[1752928372054,12.57734085,175.95,175.9,0.66]
[1752928372351,3.12695403,175.91,175.9,40.44]
[1752928374354,3.12695403,175.92,175.9,41.1]
[1752928374562,3.12695403,175.91,175.9,40.44]
[1752928376060,8.81167917,175.91,175.9,40.44]
[1752928376740,8.81167917,175.91,175.9,41.1]
[1752928377244,3.12695403,175.91,175.9,41.1]
[1752928377444,5.68449498,175.92,175.9,41.1]
[1752928377644,3.12695403,175.92,175.91,0.66]
[1752928377845,3.12695403,175.93,175.91,0.66]
[1752928378062,3.12695403,175.93,175.92,0.66]
[1752928379845,0.03,175.95,175.92,0.66]
[1752928380244,3.15695403,175.95,175.92,0.66]
[1752928380648,0.03,175.95,175.92,3.78695403]
[1752928380854,0.03,175.95,175.92,3.12695403]
[1752928381168,0.03,175.95,175.94,3.12695403]
[1752928381461,0.03,175.95,175.94,43.52695403]
[1752928381774,0.03,175.95,175.94,44.18695403]
[1752928381942,0.03,175.95,175.94,52.09505403]
[1752928383450,0.03,175.95,175.94,135.39505403]
[1752928383640,0.03,175.95,175.94,157.86349382]
[1752928384048,0.03,175.95,175.94,154.73653979]
[1752928384254,0.03,175.95,175.94,157.86349382]
[1752928384663,0.03,175.95,175.94,152.179738]
[1752928384965,0.03,175.95,175.94,157.86349382]
[1752928385762,0.03,175.95,175.94,194.99044785]
[1752928385987,0.03,176.03,175.98,16.78468397]
[1752928386156,0.03,176.03,176.02,3.12695403]
[1752928386345,0.03,176.03,176.02,40.38]
[1752928386672,0.03,176.03,176.02,41.04]
[1752928386873,0.03,176.03,176.02,44.16695403]
[1752928387248,0.03,176.03,176.02,41.04]
[1752928387963,0.03,176.03,176.02,44.16695403]
[1752928388547,0.03,176.03,176.02,41.04]
[1752928389590,0.03,176.03,176.02,44.16695403]
[1752928391744,0.03,176.03,176.02,52.00155403]
[1752928392180,0.03,176.03,176.02,68.786238]
[1752928394864,0.03,176.03,176.02,65.65928397]
[1752928395199,0.03,176.03,176.02,68.786238]
[1752928395564,0.03,176.03,176.02,48.8746]
[1752928395750,0.03,176.03,176.02,52.00155403]
[1752928396363,0.03,176.03,176.02,51.92155403]
[1752928397664,0.03,176.03,176.02,48.7946]
[1752928397972,0.03,176.03,176.02,66.96]
[1752928398271,0.03,176.03,176.02,40.28]
[1752928398467,3.15695403,176.03,176.02,40.28]
[1752928398972,8.83780388,176.03,176.02,40.28]
[1752928402187,8.83780388,176.03,175.95,100.08468397]
[1752928402354,9.44780388,176.03,175.97,0.66]
[1752928402554,3.12695403,176.0,175.98,66.32]
[1752928402850,3.12695403,175.99,175.98,66.32]
[1752928403858,3.12695403,175.99,175.98,40.32]
[1752928405074,8.80909506,175.99,175.98,40.32]
[1752928407396,8.80909506,175.99,175.95,0.67]
[1752928407686,0.61,175.98,175.96,40.28]
[1752928407993,8.80984989,175.97,175.94,40.88]
[1752928408193,5.68289586,175.97,175.95,40.28]
[1752928408564,5.68214103,175.99,175.95,40.95]
[1752928408765,5.68214103,175.99,175.96,0.67]
[1752928409086,5.68214103,175.99,175.97,40.28]
[1752928409268,3.12695403,175.98,175.97,40.28]
[1752928409470,3.12695403,176.02,175.97,44.07695403]
[1752928409662,3.12695403,176.02,175.98,0.67]
[1752928409865,3.12695403,176.02,175.99,40.28]
[1752928410099,3.15695403,176.03,176.0,0.67]
[1752928410390,3.15695403,176.03,176.01,40.95]
[1752928410958,8.83781777,176.03,176.01,40.28]
[1752928411158,5.71086374,176.03,176.01,40.28]
[1752928411398,8.83781777,176.03,176.01,40.28]
[1752928412579,0.03,176.03,176.01,40.95]
[1752928412775,0.03,176.03,176.01,40.28]
[1752928412978,0.03,176.03,176.02,0.67]
[1752928416772,0.03,176.03,176.01,40.28]
[1752928417094,3.15695403,176.03,176.01,40.28]
[1752928417773,0.03,176.03,176.02,0.67]
[1752928418491,0.03,176.03,176.02,3.79695403]
[1752928418891,0.03,176.03,176.02,3.12695403]
[1752928419098,0.03,176.03,176.02,3.79695403]
[1752928419987,0.03,176.03,176.02,87.09695403]
[1752928420287,0.03,176.03,176.02,113.09695403]
[1752928420866,0.03,176.03,176.02,113.66507128]
[1752928421068,0.03,176.03,176.02,164.44975525]
[1752928421284,0.03,176.03,176.02,137.881638]
[1752928421867,0.03,176.03,176.02,139.479938]
[1752928427096,0.03,176.03,176.02,154.36166462]
[1752928427670,0.03,176.03,176.02,148.10775656]
[1752928427865,0.03,176.03,176.02,154.36166462]
[1752928428606,0.03,176.03,176.02,320.05166462]
[1752928428887,0.03,176.07,176.06,79.911638]
[1752928429091,0.03,176.07,176.06,209.69950803]
[1752928429289,0.03,176.07,176.06,209.80151985]
[1752928431487,0.03,176.07,176.06,217.54431985]
[1752928431802,0.03,176.07,176.06,366.24431985]
[1752928432097,0.03,176.11,176.06,370.72448667]
[1752928432271,0.03,176.11,176.1,45.911638]
[1752928432598,0.03,176.11,176.1,204.07949717]
[1752928432770,0.03,176.11,176.1,204.181638]
[1752928433175,0.03,176.11,176.1,209.8602297]
[1752928433717,0.03,176.11,176.1,204.181638]
[1752928435896,0.03,176.11,176.1,209.8602297]
[1752928438021,0.2,176.13,176.12,134.05468397]
[1752928438180,0.2,176.13,176.12,177.561638]
[1752928438375,0.2,176.13,176.12,178.281638]
[1752928438980,0.2,176.13,176.12,183.95958485]
[1752928440296,0.2,176.13,176.12,134.77468397]
[1752928440476,0.2,176.13,176.12,177.561638]
[1752928440681,0.2,176.13,176.12,178.281638]
[1752928441193,0.2,176.13,176.12,126.77695403]
[1752928441617,0.2,176.13,176.12,127.49695403]
[1752928441823,0.2,176.13,176.12,144.281638]
[1752928442790,0.2,176.13,176.12,144.261638]
[1752928445286,0.2,176.13,176.12,178.261638]
[1752928458204,0.2,176.13,176.12,183.93958485]
[1752928460094,0.2,176.13,176.12,187.06653888]
[1752928461190,0.2,176.13,176.12,183.93958485]
[1752928461607,0.2,176.13,176.12,140.45263082]
[1752928461802,0.2,176.13,176.12,178.081638]
[1752928462007,0.2,176.13,176.12,174.23468397]
[1752928462217,0.2,176.13,176.12,177.361638]
[1752928462403,0.2,176.13,176.12,34.0]
[1752928462607,0.2,176.13,176.12,74.2]
[1752928463317,0.81,176.13,176.12,74.2]
[1752928463507,0.2,176.13,176.12,74.2]
[1752928464321,0.81,176.13,176.12,74.2]
[1752928464625,0.2,176.13,176.12,100.2]
[1752928464821,0.2,176.13,176.12,103.32695403]
[1752928465315,0.2,176.13,176.12,69.32695403]
[1752928465619,0.2,176.13,176.12,69.97695403]
[1752928465808,0.2,176.13,176.12,44.54474871]
[1752928466118,0.2,176.13,176.12,101.00737953]
[1752928467521,0.2,176.13,176.12,184.27737953]
[1752928467724,0.2,176.13,176.12,178.031638]
[1752928470539,0.2,176.13,176.12,178.011638]
[1752928470712,0.2,176.13,176.12,183.68958485]
[1752928473530,0.2,176.13,176.12,174.88468397]
[1752928473915,0.2,176.13,176.12,178.011638]
[1752928475744,0.2,176.13,176.12,183.68958485]
[1752928485519,0.2,176.13,176.12,189.36358485]
[1752928485717,0.2,176.13,176.12,137.831638]
[1752928486021,0.2,176.13,176.12,177.341638]
[1752928486213,0.2,176.13,176.12,177.991638]
[1752928486705,0.2,176.13,176.12,183.66958485]
[1752928488326,0.2,176.13,176.12,137.831638]
[1752928488536,0.2,176.13,176.12,177.991638]
[1752928488706,0.2,176.13,176.12,137.831638]
[1752928488909,0.2,176.13,176.12,177.991638]
[1752928489924,0.2,176.13,176.12,183.66958485]
[1752928490734,0.2,176.13,176.12,177.991638]
[1752928492544,0.2,176.13,176.12,183.66958485]
[1752928493115,0.2,176.13,176.12,189.34358485]
[1752928493328,0.2,176.13,176.12,186.79653888]
[1752928493931,0.2,176.13,176.12,192.47053888]
[1752928494139,0.2,176.13,176.12,186.79653888]
[1752928494938,0.2,176.13,176.12,146.63653888]
[1752928495117,0.2,176.13,176.12,186.79653888]
[1752928495536,0.03,176.15,176.14,50.78468397]
[1752928495726,0.03,176.15,176.14,194.62936821]
[1752928495926,0.03,176.15,176.14,194.751638]
[1752928496125,0.03,176.15,176.14,200.425638]
[1752928496430,0.03,176.15,176.14,194.751638]
[1752928497139,0.03,176.15,176.14,200.425638]
[1752928498339,0.03,176.15,176.14,206.10294014]
[1752928498714,0.03,176.17,176.14,220.2961955]
[1752928498921,0.03,176.17,176.16,102.605638]
[1752928499219,0.03,176.17,176.16,291.465638]
[1752928499436,0.03,176.17,176.16,302.155638]
[1752928499920,0.64,176.25,176.2,39.674]
[1752928500121,0.64,176.25,176.2,166.49849091]
[1752928500321,0.64,176.25,176.2,171.60632292]
[1752928500544,0.64,176.25,176.2,172.29632292]
[1752928501051,0.64,176.25,176.2,189.08100689]
[1752928501422,0.03,176.25,176.2,189.08100689]
[1752928502047,0.03,176.25,176.2,183.40700689]
[1752928504457,0.64,176.25,176.2,183.40700689]
[1752928504826,0.64,176.25,176.2,143.24700689]
[1752928505027,0.61,176.23,176.2,177.021638]
[1752928506461,0.64,176.25,176.2,183.38700689]
[1752928506631,0.03,176.25,176.2,183.38700689]
[1752928509343,0.03,176.25,176.2,186.51396092]
[1752928509953,0.03,176.25,176.2,192.94746092]
[1752928510293,0.03,176.25,176.24,165.42876476]
[1752928510565,0.03,176.25,176.24,374.41571879]
[1752928510755,0.03,176.25,176.24,375.10571879]
[1752928511275,0.03,176.29,176.24,389.29092078]
[1752928511586,0.03,176.29,176.28,37.12695403]
[1752928511746,0.03,176.29,176.28,160.80423335]
[1752928512061,0.03,176.29,176.28,160.92695403]
[1752928513046,0.03,176.29,176.28,160.23695403]
[1752928513560,0.03,176.29,176.28,157.11]
[1752928513751,0.64,176.29,176.28,173.87468397]
[1752928514257,0.64,176.29,176.28,133.75468397]
[1752928514461,0.64,176.29,176.28,173.87468397]
[1752928514835,0.64,176.29,176.28,142.97]
[1752928515035,0.64,176.29,176.28,183.09]
[1752928517278,0.64,176.29,176.28,149.09]
[1752928517479,3.76695403,176.29,176.28,40.12]
[1752928518182,9.43942552,176.29,176.28,40.12]
[1752928518481,10.95242552,176.29,176.28,40.12]
[1752928518883,10.95242552,176.29,176.19,150.3289]
[1752928518884,10.95242552,176.29,176.21,82.97]
[1752928519094,3.12695403,176.24,176.22,40.12]
[1752928519267,3.12695403,176.25,176.24,26.0]
[1752928519463,3.12695403,176.25,176.24,66.12]
[1752928519664,1.543,176.29,176.24,66.12]
[1752928519860,0.61,176.25,176.24,66.12]
[1752928520064,0.61,176.27,176.24,152.21695403]
[1752928520471,0.61,176.27,176.25,34.0]
[1752928520670,0.61,176.27,176.26,40.12]
[1752928520876,2.153,176.29,176.26,43.24695403]
[1752928521080,0.03,176.29,176.27,3.12695403]
[1752928521273,0.03,176.29,176.28,40.12]
[1752928522278,0.03,176.29,176.28,43.24695403]
[1752928522772,0.03,176.29,176.28,43.93695403]
[1752928522979,0.03,176.29,176.28,43.24695403]
[1752928525580,0.03,176.29,176.28,94.691638]
[1752928525792,0.03,176.29,176.28,95.25891732]
[1752928527482,0.03,176.29,176.28,178.22891732]
[1752928527684,0.03,176.29,176.28,177.661638]
[1752928528307,0.03,176.29,176.28,183.33443128]
[1752928531804,0.03,176.29,176.28,177.661638]
[1752928532207,0.03,176.29,176.28,173.87468397]
[1752928532524,0.03,176.29,176.28,177.001638]
[1752928532697,0.03,176.29,176.28,94.031638]
[1752928532903,0.03,176.29,176.28,94.59891732]
[1752928533496,0.03,176.29,176.28,95.25891732]
[1752928534006,0.03,176.29,176.28,100.9317106]
[1752928535222,0.06,176.31,176.3,76.78468397]
[1752928535396,0.06,176.31,176.3,203.54885297]
[1752928535595,0.06,176.31,176.3,202.981638]
[1752928535822,0.06,176.31,176.3,203.641638]
[1752928537411,0.06,176.31,176.3,199.85468397]
[1752928537613,0.06,176.31,176.3,202.981638]
[1752928537820,0.67,176.31,176.3,202.981638]
[1752928538120,0.06,176.31,176.3,208.651638]
[1752928538896,0.06,176.31,176.3,205.52468397]
[1752928539536,0.06,176.31,176.3,208.651638]
[1752928541096,0.06,176.31,176.3,209.311638]
[1752928543697,0.06,176.31,176.3,208.651638]
[1752928545919,0.06,176.31,176.3,209.311638]
[1752928546313,0.06,176.31,176.3,214.98378774]
[1752928546622,0.06,176.31,176.3,209.31378774]
[1752928547042,0.06,176.31,176.3,203.641638]
[1752928547518,0.06,176.31,176.3,209.311638]
[1752928548610,0.06,176.31,176.3,208.651638]
[1752928549139,0.06,176.31,176.3,202.981638]
[1752928549934,0.06,176.31,176.3,208.651638]
[1752928550632,0.06,176.31,176.3,203.641638]
[1752928551339,0.06,176.31,176.3,209.311638]
[1752928555236,0.06,176.31,176.3,208.651638]
[1752928558038,0.06,176.31,176.3,209.371638]
[1752928559638,0.06,176.31,176.3,206.24468397]
[1752928559828,0.06,176.31,176.3,209.371638]
[1752928560211,0.06,176.31,176.3,215.04378774]
[1752928561023,0.06,176.31,176.3,209.196659]
[1752928561337,0.06,176.31,176.3,214.86880874]
[1752928561721,0.06,176.31,176.3,209.19880874]
[1752928561917,0.06,176.31,176.3,209.17880874]
[1752928562919,0.06,176.33,176.32,50.78468397]
[1752928563124,0.06,176.33,176.32,94.55878863]
[1752928563325,0.06,176.33,176.32,100.23029498]
[1752928563540,0.06,176.33,176.32,100.95029498]
[1752928563950,0.06,176.33,176.32,106.62029498]
[1752928564249,0.06,176.33,176.32,100.95029498]
[1752928564838,0.06,176.33,176.32,95.27878863]
[1752928565424,0.06,176.33,176.32,100.94878863]
[1752928567039,0.06,176.33,176.32,106.62029498]
[1752928567546,0.06,176.33,176.32,100.94878863]
[1752928568049,0.06,176.33,176.32,177.36878863]
[1752928568351,0.06,176.33,176.32,176.801638]
[1752928571554,0.06,176.33,176.32,177.521638]
[1752928573337,0.06,176.33,176.32,176.801638]
[1752928573543,0.06,176.33,176.32,177.521638]